fUST/lending_fUST_20241009
["ID","MTS","AMOUNT","RATE_DAILY","PERIOD"]
[340056043,1728421833516,-500.0,0.00025794,2]
[340056044,1728421833526,-500.0,0.00025794,2]
[340056045,1728421833537,-500.0,0.00025794,2]
[340056046,1728421833547,-500.0,0.00025794,2]
[340056047,1728421833556,-500.0,0.00025794,2]
[340056048,1728421833568,-300.88061951,0.00025794,2]
[340056049,1728421833581,-172.92926358,0.00025794,2]
[340056050,1728421833591,-5344.59627595,0.00025795,3]
[340056055,1728421838393,-7088.90515642,0.00025795,3]
[340056056,1728421838505,-422.8343388,0.00025795,3]
[340056060,1728421840426,-36479.05815213,0.00025795,3]
[340056061,1728421840435,-5271.75683742,0.00025795,3]
[340056062,1728421840445,-5000.0,0.00025804,2]
[340056063,1728421840455,-5000.0,0.00025804,2]
[340056064,1728421840464,-5000.0,0.00025804,2]
[340056065,1728421840473,-5000.0,0.00025804,2]
[340056066,1728421840482,-5000.0,0.00025804,2]
[340056067,1728421840492,-5000.0,0.00025815,2]
[340056068,1728421840502,-500.0,0.00025873,2]
[340056069,1728421840512,-500.0,0.00025873,2]
[340056070,1728421840523,-500.0,0.00025873,2]
[340056071,1728421840533,-500.0,0.00025873,2]
[340056072,1728421840545,-502.28110308,0.00025873,2]
[340056073,1728421840558,-500.0,0.00025873,2]
[340056074,1728421840569,-500.0,0.00025873,2]
[340056075,1728421840578,-500.0,0.00025873,2]
[340056076,1728421840589,-500.0,0.00025873,2]
[340056077,1728421840600,-500.0,0.00025873,2]
[340056078,1728421840614,-312.81875358,0.00025873,2]
[340056079,1728421840624,-500.0,0.00025873,2]
[340056080,1728421840633,-500.0,0.00025873,2]
[340056081,1728421840643,-2904.41,0.00026243,10]
[340056082,1728421840654,-13658.57035352,0.00026252,4]
[340056099,1728422915735,76599.17732705,0.00037161,60]
[340056100,1728422916421,1367.86872684,0.00014,4]
[340056133,1728423032724,-166.666666,0.0002358,2]
[340056134,1728423032737,-250.0,0.00023609,2]
[340056135,1728423032748,-250.0,0.00023674,2]
[340056136,1728423032758,-250.0,0.00023739,2]
[340056137,1728423032767,-2643.20578676,0.0002375,2]
[340056138,1728423032783,-266.79421324,0.0002375,2]
[340056139,1728423032794,-250.0,0.00023804,2]
[340056140,1728423032805,-250.0,0.00023868,2]
[340056141,1728423032815,-250.0,0.00023933,2]
[340056142,1728423032828,-250.0,0.00023998,2]
[340056143,1728423032840,-250.0,0.00024063,2]
[340056144,1728423032852,-250.0,0.00024127,2]
[340056145,1728423032862,-250.0,0.00024192,2]
[340056146,1728423032874,-234.877121,0.00024208,2]
[340056147,1728423032884,-166.666666,0.00024222,2]
[340056148,1728423032894,-250.0,0.00024257,2]
[340056149,1728423032904,-250.0,0.00024322,2]
[340056150,1728423032914,-300.0,0.0002435,2]
[340056151,1728423032923,-201.08128706,0.0002435,10]
[340056152,1728423032933,-2760.36908975,0.00024351,2]
[340056153,1728423032958,-1134.19889371,0.00024351,2]
[340056154,1728423032968,-250.0,0.00024386,2]
[340056155,1728423032978,-1322.59251217,0.0002444,2]
[340056161,1728423038587,-639.17063157,0.0002444,2]
[340056162,1728423038706,-21687.4430475,0.0002444,2]
[340056163,1728423038718,-703.10765389,0.0002444,2]
[340056173,1728423040607,-714.518937,0.00023775,2]
[340056174,1728423040623,-547.68615487,0.0002444,2]
[340056175,1728423040637,-332.52145129,0.0002444,7]
[340056176,1728423040653,-250.0,0.00024451,2]
[340056177,1728423040667,-250.0,0.00024516,2]
[340056178,1728423040678,-250.0,0.00024581,2]
[340056179,1728423040690,-250.0,0.00024645,2]
[340056180,1728423040705,-250.0,0.0002471,2]
[340056181,1728423040722,-250.0,0.00024775,2]
[340056182,1728423040735,-250.0,0.00024839,2]
[340056183,1728423040751,-166.666666,0.00024865,2]
[340056184,1728423040764,-151.2555845,0.00025,120]
[340056185,1728423040779,-10364.0,0.00025,2]
[340056186,1728423040793,-2904.41,0.0002508,10]
[340056187,1728423040806,-2420.34,0.0002508,10]
[340056188,1728423040822,-2016.95,0.0002508,10]
[340056189,1728423040836,-314.61949022,0.00025089,2]
[340056190,1728423040851,-294.63930077,0.00025089,2]
[340056191,1728423040863,-500.0,0.00025089,2]
[340056192,1728423040874,-600.81851574,0.00025089,2]
[340056193,1728423040886,-500.0,0.00025089,2]
[340056194,1728423040899,-500.0,0.00025089,2]
[340056195,1728423040911,-500.0,0.00025089,2]
[340056196,1728423040925,-518.39807553,0.00025089,2]
[340056197,1728423040939,-500.0,0.00025089,2]
[340056198,1728423040953,-500.0,0.00025089,2]
[340056199,1728423040965,-500.0,0.00025089,2]
[340056200,1728423040977,-500.0,0.00025089,2]
[340056201,1728423040990,-500.0,0.00025089,2]
[340056202,1728423041002,-369.71529358,0.00025089,2]
[340056203,1728423041013,-500.0,0.00025089,2]
[340056204,1728423041026,-500.0,0.00025089,2]
[340056205,1728423041038,-224.17005352,0.00025089,2]
[340056206,1728423041051,-500.0,0.00025089,2]
[340056207,1728423041064,-500.0,0.00025089,2]
[340056208,1728423041076,-500.0,0.00025089,2]
[340056209,1728423041090,-500.0,0.00025089,2]
[340056210,1728423041102,-500.0,0.00025089,2]
[340056211,1728423041116,-500.0,0.00025089,2]
[340056212,1728423041129,-500.0,0.00025089,2]
[340056213,1728423041143,-500.0,0.00025089,2]
[340056214,1728423041155,-500.0,0.00025089,2]
[340056215,1728423041168,-531.13158596,0.00025089,2]
[340056216,1728423041180,-500.0,0.00025089,2]
[340056217,1728423041194,-59907.05409075,0.0002509,2]
[340056248,1728423043481,-18054.63249371,0.0002509,2]
[340056582,1728423046748,-42259.91171331,0.0002509,2]
[340056584,1728423046760,-3327.96041731,0.0002509,2]
[340056852,1728424232575,-300.0,0.00022676,2]
[340056854,1728424232586,-300.0,0.00022676,2]
[340056856,1728424232596,-24900.0,0.00022677,2]
[340056858,1728424232607,-166.666666,0.0002282,2]
[340056860,1728424232619,-481.516425,0.00022932,2]
[340056862,1728424232629,-161.270043,0.00023113,2]
[340056864,1728424232638,-211.67888989,0.000234,2]
[340056867,1728424232648,-211.67888988,0.000234,2]
[340056872,1728424232658,-166.666666,0.00023443,2]
[340056875,1728424232668,-250.0,0.00023471,2]
[340056877,1728424232677,-250.0,0.00023535,2]
[340056879,1728424232687,-250.0,0.00023599,2]
[340056881,1728424232698,-250.0,0.00023664,2]
[340056883,1728424232710,-250.0,0.00023728,2]
[340056886,1728424232721,-83.36008715,0.00023793,2]
[340056888,1728424232734,-166.63991285,0.00023793,2]
[340056890,1728424232744,-250.0,0.00023857,2]
[340056892,1728424232754,-250.0,0.00023921,2]
[340056908,1728424232891,-28.12850392,0.00023986,2]
[340056911,1728424232910,-221.87149608,0.00023986,2]
[340056913,1728424232920,-250.0,0.0002405,2]
[340056915,1728424232931,-166.666666,0.00024065,2]
[340056917,1728424232940,-250.0,0.00024114,2]
[340056919,1728424232951,-250.0,0.00024179,2]
[340056921,1728424232962,-274.469655,0.00024179,7]
[340056923,1728424232972,-250.0,0.00024243,2]
[340056926,1728424232981,-250.0,0.00024308,2]
[340056928,1728424232990,-250.0,0.00024372,2]
[340056930,1728424233000,-250.0,0.00024436,2]
[340056932,1728424233010,-250.0,0.00024501,2]
[340056934,1728424233020,-250.0,0.00024565,2]
[340056936,1728424233029,-420.0,0.00024624,2]
[340056938,1728424233039,-250.0,0.0002463,2]
[340056940,1728424233052,-166.666666,0.00024687,2]
[340056942,1728424233062,-250.0,0.00024694,2]
[340056944,1728424233071,-2747.85936347,0.00024802,2]
[340056994,1728424238736,-2022.53203335,0.00024079,2]
[340056999,1728424240670,-1615.02521247,0.00024079,2]
[340057000,1728424240681,-3137.56060836,0.00024802,2]
[340057001,1728424240690,-318.0,0.00024932,2]
[340057002,1728424240700,-420.0,0.00024943,2]
[340057003,1728424240710,-1145.01226753,0.0002499,2]
[340057004,1728424240720,-318.0,0.00025,2]
[340057005,1728424240729,-173.0,0.00025,2]
[340057006,1728424240739,-1034.39,0.00025059,10]
[340057007,1728424240750,-1508.39,0.00025059,10]
[340057008,1728424240761,-500.0,0.00025068,2]
[340057009,1728424240770,-500.0,0.00025068,2]
[340057010,1728424240780,-500.0,0.00025068,2]
[340057011,1728424240792,-281.13158596,0.00025068,2]
[340057012,1728424240803,-24024.8801731,0.00025069,3]
[340057013,1728424240813,-26962.79582929,0.00025069,3]
[340057049,1728425431705,-364.115718,0.0002276,2]
[340057050,1728425431715,-166.666666,0.00022819,2]
[340057051,1728425431725,-250.0,0.00023232,2]
[340057052,1728425431736,-250.0,0.00023296,2]
[340057053,1728425431746,-250.0,0.0002336,2]
[340057054,1728425431757,-250.0,0.00023424,2]
[340057055,1728425431767,-166.666666,0.00023441,2]
[340057057,1728425431777,-250.0,0.00023487,2]
[340057059,1728425431786,-250.0,0.00023551,2]
[340057060,1728425431795,-250.0,0.00023615,2]
[340057061,1728425431806,-300.0,0.00023666,2]
[340057062,1728425431816,-300.0,0.00023666,2]
[340057063,1728425431826,-8148.34622792,0.00023667,2]
[340057066,1728425439773,-326.46807621,0.00023667,2]
[340057067,1728425439831,-16425.18569587,0.00023667,2]
[340057068,1728425439841,-250.0,0.00023678,2]
[340057069,1728425439851,-223.133264,0.00023736,2]
[340057070,1728425439860,-250.0,0.00023742,2]
[340057071,1728425439870,-250.0,0.00023806,2]
[340057072,1728425439879,-250.0,0.0002387,2]
[340057073,1728425439888,-250.0,0.00023933,2]
[340057074,1728425439898,-250.0,0.00023997,2]
[340057075,1728425439907,-182.97977,0.00024025,7]
[340057076,1728425439917,-3459.85328781,0.00024025,2]
[340057077,1728425439926,-250.0,0.00024061,2]
[340057078,1728425439935,-166.666666,0.00024063,2]
[340057079,1728425439944,-250.0,0.00024125,2]
[340057080,1728425439954,-250.0,0.00024188,2]
[340057081,1728425439966,-250.0,0.00024252,2]
[340057082,1728425439976,-250.0,0.00024316,2]
[340057083,1728425439986,-250.0,0.00024379,2]
[340057084,1728425439995,-250.0,0.00024443,2]
[340057085,1728425440004,-13094.56531452,0.000245,2]
[340057086,1728425440014,-166.666666,0.00024685,2]
[340057087,1728425440024,-1680.79,0.00024809,10]
[340057088,1728425440034,-500.0,0.00024818,2]
[340057089,1728425440044,-500.0,0.00024818,2]
[340057090,1728425440053,-500.0,0.00024818,2]
[340057091,1728425440065,-281.13158596,0.00024818,2]
[340057092,1728425440074,-151.0,0.00024819,7]
[340057093,1728425440083,-151.0,0.00024819,7]
[340057094,1728425440093,-2886.41844,0.00024819,7]
[340057095,1728425440103,-2886.41844,0.00024819,7]
[340057096,1728425440112,-14317.35133408,0.00024819,3]
[340057109,1728425445781,-608.76,0.00024809,10]
[340057110,1728426501593,-825.81,0.00024797,10]
[340057111,1728426501672,-225.26,0.000251,14]
[340057112,1728426501699,-417.26,0.000251,14]
[340057113,1728426501723,-200.0,0.0002546,12]
[340057114,1728426501749,-225.26,0.000292,14]
[340057115,1728426501773,-417.26,0.000294,14]
[340057116,1728426501912,-10000.02835288,0.0003,15]
[340057117,1728426501938,-198.092,0.00030466,26]
[340057118,1728426501962,-130764.9880047,0.00031,120]
[340057119,1728426501988,-225.26,0.000323,14]
[340057120,1728426502011,-417.26,0.000329,14]
[340057121,1728426502035,-69713.428,0.00033528,30]
[340057122,1728426502058,-5571.54220255,0.00034847,45]
[340057123,1728426502082,-5000.0,0.00034847,45]
[340057124,1728426502105,-5000.0,0.00034847,49]
[340057125,1728426502133,-5000.0,0.00034847,50]
[340057126,1728426502158,-5000.0,0.00034847,51]
[340057127,1728426502184,-225.26,0.000359,14]
[340057128,1728426502210,-417.26,0.00036,14]
[340057129,1728426502234,-130000.0,0.000371,60]
[340057130,1728426502259,-500.55882128,0.0003882,14]
[340057131,1728426502283,-500.0,0.0003882,14]
[340057132,1728426502307,-129155.47261859,0.0003888,120]
[340057133,1728426505813,-1441.7,0.00024798,10]
[340057134,1728426505917,-192593.94828722,0.0003888,120]
[340057135,1728426505942,-104171.00554311,0.0003888,120]
[340057136,1728426505966,-1000.0,0.00039,120]
[340057137,1728426505991,-166.2,0.00039255,15]
[340057138,1728426506020,-2000.0,0.0004,40]
[340057139,1728426506046,-100162.0894493,0.0004,60]
[340057140,1728426506072,-210.0,0.0004,120]
[340057141,1728426506096,-600.0,0.00040282,120]
[340057142,1728426506131,-2000.0,0.00041,41]
[340057143,1728426506156,-1000.0,0.00041,120]
[340057144,1728426506301,-500.0,0.00041096,31]
[340057145,1728426506329,-2306.21047331,0.00041096,31]
[340057146,1728426506353,-500.0,0.00041096,31]
[340057147,1728426506382,-2306.21047331,0.00041096,31]
[340057148,1728426506406,-468.44432606,0.00041096,31]
[340057149,1728426506430,-2306.21047331,0.00041096,31]
[340057150,1728426506454,-2306.21047331,0.00041096,31]
[340057151,1728426506482,-2306.21047331,0.00041096,31]
[340057152,1728426506508,-2306.21047331,0.00041096,31]
[340057153,1728426506532,-2306.21047331,0.00041096,31]
[340057154,1728426506557,-2306.21047331,0.00041096,31]
[340057155,1728426506582,-2306.21047331,0.00041096,31]
[340057156,1728426506605,-2306.21047331,0.00041096,31]
[340057157,1728426506630,-2306.21047331,0.00041096,31]
[340057158,1728426506654,-2306.21047331,0.00041096,31]
[340057159,1728426506680,-2306.21047331,0.00041096,31]
[340057160,1728426506707,-2306.21047331,0.00041096,31]
[340057161,1728426506731,-2306.21047331,0.00041096,31]
[340057162,1728426506757,-2306.21047331,0.00041096,31]
[340057163,1728426506783,-2306.21047331,0.00041096,31]
[340057164,1728426506807,-2306.21047331,0.00041096,31]
[340057165,1728426506832,-2306.21047331,0.00041096,31]
[340057166,1728426506857,-2306.21047331,0.00041096,31]
[340057167,1728426506884,-2306.21047331,0.00041096,31]
[340057168,1728426506910,-2306.21047331,0.00041096,31]
[340057169,1728426506935,-2306.21047331,0.00041096,31]
[340057170,1728426506959,-2306.21047331,0.00041096,31]
[340057171,1728426506988,-2306.21047331,0.00041096,31]
[340057172,1728426507012,-2306.21047331,0.00041096,31]
[340057173,1728426507037,-2306.21047331,0.00041096,31]
[340057174,1728426507063,-2306.21047331,0.00041096,31]
[340057175,1728426507090,-2306.21047331,0.00041096,31]
[340057176,1728426507117,-2306.21047331,0.00041096,31]
[340057177,1728426507163,-2306.21047331,0.00041096,31]
[340057178,1728426507201,-2306.21047331,0.00041096,31]
[340057179,1728426507241,-2306.21047331,0.00041096,31]
[340057180,1728426507282,-2306.21047331,0.00041096,31]
[340057181,1728426507319,-2306.21047331,0.00041096,31]
[340057182,1728426507357,-2306.21047331,0.00041096,31]
[340057183,1728426507395,-2306.21047331,0.00041096,31]
[340057184,1728426507433,-2306.21047331,0.00041096,31]
[340057185,1728426507475,-2306.21047331,0.00041096,31]
[340057186,1728426507505,-2306.21047331,0.00041096,31]
[340057187,1728426507544,-938.19346191,0.00041096,31]
[340057188,1728426507820,944.81637084,0.000176,2]
[340057189,1728426517864,513.87849969,0.00037169,7]
[340057190,1728426518624,-1201.41,0.00024787,10]
[340057191,1728426518712,-2590.23121223,0.00041096,31]
[340057192,1728426518736,-2590.23121223,0.00041096,31]
[340057193,1728426518759,-2590.23121223,0.00041096,31]
[340057194,1728426518784,-2590.23121223,0.00041096,31]
[340057195,1728426518808,-2590.23121223,0.00041096,31]
[340057196,1728426518832,-2590.23121223,0.00041096,31]
[340057197,1728426518856,-2590.23121223,0.00041096,31]
[340057198,1728426518883,-2590.23121223,0.00041096,31]
[340057199,1728426518907,-2590.23121223,0.00041096,31]
[340057200,1728426518931,-2590.23121223,0.00041096,31]
[340057201,1728426518955,-2590.23121223,0.00041096,31]
[340057202,1728426519089,-2590.23121223,0.00041096,31]
[340057203,1728426519114,-2590.23121223,0.00041096,31]
[340057204,1728426519141,-2590.23121223,0.00041096,31]
[340057205,1728426519166,-2590.23121223,0.00041096,31]
[340057206,1728426519191,-2590.23121223,0.00041096,31]
[340057207,1728426519214,-2590.23121223,0.00041096,31]
[340057208,1728426519239,-2590.23121223,0.00041096,31]
[340057209,1728426519265,-2590.23121223,0.00041096,31]
[340057210,1728426519290,-2590.23121223,0.00041096,31]
[340057211,1728426519316,-374.733768,0.00041315,120]
[340057212,1728426519340,-969.68834857,0.00041393,120]
[340057213,1728426519365,-153.0,0.00041644,30]
[340057214,1728426519396,-153.0,0.00041644,30]
[340057215,1728426519423,-3536.78050485,0.00041809,10]
[340057216,1728426519455,-2000.0,0.00042,42]
[340057217,1728426519480,-8206.45495748,0.00042,30]
[340057218,1728426519504,-225.26,0.000423,14]
[340057219,1728426519528,-306.0,0.00042466,30]
[340057220,1728426519552,-600.0,0.00042564,120]
[340057221,1728426519576,-372.04,0.000426,14]
[340057222,1728426519600,-3200.0,0.00042871,14]
[340057223,1728426519626,-150.0,0.00042871,30]
[340057224,1728426519652,-219.917,0.00042888,30]
[340057225,1728426519677,-154.8482996,0.00042898,120]
[340057226,1728426519707,-2000.0,0.00043,43]
[340057227,1728426519730,-1000.0,0.00043,120]
[340057228,1728426519755,-166.2,0.00043095,31]
[340057229,1728426519780,-153.0,0.00043288,30]
[340057230,1728426519804,-153.0,0.00043288,30]
[340057231,1728426519828,-153.0,0.00043288,30]
[340057232,1728426519853,-153.0,0.00043288,30]
[340057233,1728426519882,-153.0,0.00043288,30]
[340057234,1728426519907,-153.0,0.00043288,30]
[340057235,1728426519933,-153.0,0.00043288,30]
[340057236,1728426519959,-153.0,0.00043288,30]
[340057237,1728426519984,-3459.85328775,0.00043425,28]
[340057238,1728426520010,-423.72,0.000435,14]
[340057239,1728426520035,-225.26,0.000436,14]
[340057240,1728426520062,-2000.0,0.00044,44]
[340057241,1728426520086,-153.0,0.0004411,30]
[340057242,1728426520111,-490.1864396,0.0004411,30]
[340057243,1728426520139,-450.6909301,0.0004411,30]
[340057244,1728426520166,-325.05984622,0.000449,120]
[340057245,1728426520195,-2000.0,0.00045,45]
[340057246,1728426520221,-2000.0,0.00045,120]
[340057247,1728426520245,-50000.0,0.00045,120]
[340057248,1728426520272,-1000.0,0.00045,120]
[340057249,1728426520296,-1683.60953581,0.00045,30]
[340057250,1728426520322,-275.6307853,0.00045,120]
[340057251,1728426520347,-2000.0,0.000455,120]
[340057252,1728426520374,-32567.80703072,0.000459,30]
[340057253,1728426520402,-2000.0,0.00046,46]
[340057254,1728426520427,-320927.2250214,0.00046,60]
[340057255,1728426525197,-2590.23121223,0.00041096,31]
[340057256,1728426525221,-2590.23121223,0.00041096,31]
[340057257,1728426525244,-2590.23121223,0.00041096,31]
[340057258,1728426525379,-2590.23121223,0.00041096,31]
[340057259,1728426525404,-2590.23121223,0.00041096,31]
[340057260,1728426525429,-2590.23121223,0.00041096,31]
[340057261,1728426525453,-2590.23121223,0.00041096,31]
[340057262,1728426525476,-2590.23121223,0.00041096,31]
[340057263,1728426525500,-2590.23121223,0.00041096,31]
[340057264,1728426525522,-2590.23121223,0.00041096,31]
[340057265,1728426525545,-2590.23121223,0.00041096,31]
[340057266,1728426525569,-2590.23121223,0.00041096,31]
[340057267,1728426525593,-2590.23121223,0.00041096,31]
[340057268,1728426525617,-2590.23121223,0.00041096,31]
[340057269,1728426525650,-2590.23121223,0.00041096,31]
[340057270,1728426525672,-2590.23121223,0.00041096,31]
[340057271,1728426525696,-2590.23121223,0.00041096,31]
[340057272,1728426525724,-2590.23121223,0.00041096,31]
[340057273,1728426525747,-2590.23121223,0.00041096,31]
[340057274,1728426525771,-2590.23121223,0.00041096,31]
[340057275,1728426525794,-2590.23121223,0.00041096,31]
[340057276,1728426525818,-2590.23121223,0.00041096,31]
[340057277,1728426525842,-2590.23121223,0.00041096,31]
[340057278,1728426525865,-2590.23121223,0.00041096,31]
[340057279,1728426525889,-2590.23121223,0.00041096,31]
[340057280,1728426525912,-2590.23121223,0.00041096,31]
[340057281,1728426525936,-2590.23121223,0.00041096,31]
[340057282,1728426525960,-2590.23121223,0.00041096,31]
[340057283,1728426525983,-153.0,0.00042329,30]
[340057284,1728426526009,-427320.52605756,0.00046,60]
[340057285,1728426528949,-500000.0,0.00046,60]
[340057286,1728426538864,-1235.82115668,0.00041096,31]
[340057287,1728426538890,-1235.82115668,0.00041096,31]
[340057288,1728426538914,-1235.82115668,0.00041096,31]
[340057289,1728426538938,-1235.82115668,0.00041096,31]
[340057290,1728426538961,-1235.82115668,0.00041096,31]
[340057291,1728426538985,-1235.82115668,0.00041096,31]
[340057292,1728426539010,-1235.82115668,0.00041096,31]
[340057293,1728426539034,-1235.82115668,0.00041096,31]
[340057294,1728426539058,-1235.82115668,0.00041096,31]
[340057295,1728426539082,-1235.82115668,0.00041096,31]
[340057296,1728426539105,-1235.82115668,0.00041096,31]
[340057297,1728426539129,-1235.82115668,0.00041096,31]
[340057298,1728426539159,-1235.82115668,0.00041096,31]
[340057299,1728426539185,-1235.82115668,0.00041096,31]
[340057300,1728426539217,-1235.82115668,0.00041096,31]
[340057301,1728426539247,-1235.82115668,0.00041096,31]
[340057302,1728426539274,-1235.82115668,0.00041096,31]
[340057303,1728426539302,-1235.82115668,0.00041096,31]
[340057304,1728426539328,-1235.82115668,0.00041096,31]
[340057305,1728426539356,-1235.82115668,0.00041096,31]
[340057306,1728426539382,-1235.82115668,0.00041096,31]
[340057307,1728426539409,-1235.82115668,0.00041096,31]
[340057308,1728426539437,-1235.82115668,0.00041096,31]
[340057309,1728426539462,-1235.82115668,0.00041096,31]
[340057310,1728426539487,-1235.82115668,0.00041096,31]
[340057311,1728426539511,-1235.82115668,0.00041096,31]
[340057312,1728426539535,-1235.82115668,0.00041096,31]
[340057313,1728426539560,-1235.82115668,0.00041096,31]
[340057314,1728426539584,-1235.82115668,0.00041096,31]
[340057315,1728426539608,-1235.82115668,0.00041096,31]
[340057316,1728426539634,-1235.82115668,0.00041096,31]
[340057317,1728426539803,-1235.82115668,0.00041096,31]
[340057318,1728426539829,-1235.82115668,0.00041096,31]
[340057319,1728426539853,-1235.82115668,0.00041096,31]
[340057320,1728426539877,-1235.82115668,0.00041096,31]
[340057321,1728426539901,-1235.82115668,0.00041096,31]
[340057322,1728426539926,-1235.82115668,0.00041096,31]
[340057323,1728426539951,-1235.82115668,0.00041096,31]
[340057324,1728426539976,-1235.82115668,0.00041096,31]
[340057325,1728426540002,-451802.97488948,0.00046,60]
[340057326,1728426557118,-834.31,0.00024787,10]
[340057327,1728426557145,-862.13,0.00024787,10]
[340057328,1728426557172,-166.9,0.000248,14]
[340057329,1728426557241,-166.9,0.000292,14]
[340057330,1728426557271,-166.9,0.000333,14]
[340057331,1728426557297,-166.9,0.000387,14]
[340057332,1728426557323,-671.25157698,0.00041096,31]
[340057333,1728426557347,-671.25157698,0.00041096,31]
[340057334,1728426557372,-671.25157698,0.00041096,31]
[340057335,1728426557397,-671.25157698,0.00041096,31]
[340057336,1728426557421,-671.25157698,0.00041096,31]
[340057337,1728426557445,-671.25157698,0.00041096,31]
[340057338,1728426557470,-671.25157698,0.00041096,31]
[340057339,1728426557494,-671.25157698,0.00041096,31]
[340057340,1728426557517,-671.25157698,0.00041096,31]
[340057341,1728426557542,-671.25157698,0.00041096,31]
[340057342,1728426557567,-671.25157698,0.00041096,31]
[340057343,1728426557590,-671.25157698,0.00041096,31]
[340057344,1728426557615,-671.25157698,0.00041096,31]
[340057345,1728426557641,-671.25157698,0.00041096,31]
[340057346,1728426557666,-671.25157698,0.00041096,31]
[340057347,1728426557690,-671.25157698,0.00041096,31]
[340057348,1728426557716,-671.25157698,0.00041096,31]
[340057349,1728426557740,-671.25157698,0.00041096,31]
[340057350,1728426557764,-671.25157698,0.00041096,31]
[340057351,1728426557789,-671.25157698,0.00041096,31]
[340057352,1728426557812,-671.25157698,0.00041096,31]
[340057353,1728426557835,-671.25157698,0.00041096,31]
[340057354,1728426557860,-671.25157698,0.00041096,31]
[340057355,1728426557884,-671.25157698,0.00041096,31]
[340057356,1728426557908,-671.25157698,0.00041096,31]
[340057357,1728426557934,-671.25157698,0.00041096,31]
[340057358,1728426557958,-671.25157698,0.00041096,31]
[340057359,1728426557982,-671.25157698,0.00041096,31]
[340057360,1728426558005,-671.25157698,0.00041096,31]
[340057361,1728426558029,-671.25157698,0.00041096,31]
[340057362,1728426558055,-671.25157698,0.00041096,31]
[340057363,1728426558079,-671.25157698,0.00041096,31]
[340057364,1728426558103,-671.25157698,0.00041096,31]
[340057365,1728426558128,-671.25157698,0.00041096,31]
[340057366,1728426558154,-671.25157698,0.00041096,31]
[340057367,1728426558178,-671.25157698,0.00041096,31]
[340057368,1728426558330,-671.25157698,0.00041096,31]
[340057369,1728426558356,-671.25157698,0.00041096,31]
[340057370,1728426558381,-671.25157698,0.00041096,31]
[340057371,1728426558407,-671.25157698,0.00041096,31]
[340057372,1728426558431,-671.25157698,0.00041096,31]
[340057373,1728426558457,-671.25157698,0.00041096,31]
[340057374,1728426558481,-671.25157698,0.00041096,31]
[340057375,1728426558506,-671.25157698,0.00041096,31]
[340057376,1728426558529,-671.25157698,0.00041096,31]
[340057377,1728426558556,-467429.6390359,0.00046,60]
[340057392,1728426604002,-718.44,0.00024787,10]
[340057393,1728426604028,-598.7,0.00024787,10]
[340057394,1728426604057,-275.6307853,0.00024799,7]
[340057395,1728426604083,-551.287755,0.00024807,7]
[340057396,1728426604109,-551.287755,0.00024807,7]
[340057397,1728426604135,-151.0,0.00024807,7]
[340057398,1728426604161,-2886.41844,0.00024807,7]
[340057399,1728426604187,-2886.41844,0.00024807,7]
[340057400,1728426604212,-321.257767,0.00024807,7]
[340057401,1728426604237,-378.507934,0.00024807,7]
[340057402,1728426604262,-321.257767,0.00024807,7]
[340057403,1728426604286,-378.507934,0.00024807,7]
[340057404,1728426604311,-151.0,0.00024808,7]
[340057405,1728426604336,-151.0,0.00024808,7]
[340057406,1728426604361,-151.0,0.00024808,7]
[340057407,1728426604387,-151.0,0.00024808,7]
[340057408,1728426604412,-151.0,0.00024808,7]
[340057409,1728426604444,-151.0,0.00024808,7]
[340057410,1728426604470,-151.0,0.00024808,7]
[340057411,1728426604497,-151.0,0.00024808,7]
[340057412,1728426604522,-151.0,0.00024808,7]
[340057413,1728426604547,-207.018641,0.00024808,7]
[340057414,1728426604572,-363.855638,0.00024808,7]
[340057415,1728426604599,-363.855638,0.00024808,7]
[340057416,1728426604743,-363.855638,0.00024808,7]
[340057417,1728426604774,-1633.47461,0.00024808,7]